bitfinex/quotes_SOLUSD_20240612
["timestamp","ask_amount","ask_price","bid_price","bid_amount"]
[1718184245317,11.46,151.5,151.46,12.2142]
[1718184245522,11.46,151.5,151.48,2.4424]
[1718184247630,11.46,151.5,151.46,8.4]
[1718184247814,11.46,151.5,151.49,2.4424]
[1718184248505,11.46,151.5,151.48,2.4424]
[1718184248709,11.46,151.5,151.47,13.2851]
[1718184248929,11.46,151.5,151.48,2.4425]
[1718184250741,13.9022,151.5,151.46,2.4427]
[1718184250906,22.3022,151.5,151.46,2.4427]
[1718184251304,22.3022,151.5,151.47,2.4427]
[1718184251827,13.9022,151.5,151.47,2.4427]
[1718184252323,11.46,151.5,151.47,2.4427]
[1718184254808,13.9022,151.5,151.46,2.4427]
[1718184255124,8.4,151.48,151.45,2.4429]
[1718184255714,8.4,151.47,151.44,2.4431]
[1718184256425,8.4,151.47,151.45,2.443]
[1718184256817,8.4,151.47,151.42,21.9914]
[1718184256818,8.4,151.47,151.44,2.4431]
[1718184257018,8.4,151.47,151.45,2.443]
[1718184257236,2.4424,151.49,151.46,2.4428]
[1718184257537,8.4,151.48,151.45,2.4429]
[1718184257732,8.4,151.46,151.44,2.4431]
[1718184258319,10.8427,151.47,151.44,2.4431]
[1718184258523,2.4427,151.47,151.44,2.4431]
[1718184258737,10.8427,151.47,151.44,2.4431]
[1718184261536,10.8427,151.47,151.43,2.4433]
[1718184261537,8.4,151.46,151.43,2.4433]
[1718184263044,8.4,151.46,151.44,2.4432]
[1718184263740,8.4,151.46,151.41,7.331]
[1718184263944,8.4,151.46,151.41,17.1055]
[1718184264439,8.4,151.46,151.43,2.4432]
[1718184264944,8.4,151.46,151.44,2.4432]
[1718184267030,8.4,151.46,151.45,2.443]
[1718184267227,63.7955,151.5,151.45,2.443]
[1718184267228,2.4426,151.48,151.45,2.443]
[1718184267438,68.68,151.5,151.42,4.887]
[1718184267439,4.8848,151.49,151.42,4.887]
[1718184267644,8.4,151.45,151.44,2.4432]
[1718184269547,8.4,151.45,151.43,2.4432]
[1718184270228,8.4,151.45,151.44,2.4432]
[1718184270772,8.4,151.45,151.41,2.4436]
[1718184270959,8.4,151.45,151.4,4.8875]
[1718184270960,8.4,151.43,151.42,2.4434]
[1718184275430,8.4,151.43,151.41,2.4436]
[1718184277343,8.4,151.43,151.4,2.4438]
[1718184277545,8.4,151.42,151.4,2.4438]
[1718184277861,8.4,151.41,151.39,2.4439]
[1718184278257,8.4,151.41,151.4,2.4438]
[1718184278450,8.4,151.42,151.4,2.4438]
[1718184278971,17.7261,151.45,151.4,2.4438]
[1718184279271,8.4,151.42,151.4,2.4438]
[1718184281068,8.4,151.42,151.41,2.4436]
[1718184281265,17.69567331,151.45,151.4,4.8877]
[1718184281561,8.4,151.44,151.43,2.4433]
[1718184281937,8.4,151.44,151.42,2.4434]
[1718184282475,2.41267331,151.45,151.42,2.4434]
[1718184282655,8.4,151.44,151.42,2.4434]
[1718184283570,8.4,151.44,151.41,2.4435]
[1718184285801,2.4434,151.43,151.39,2.4439]
[1718184285980,8.4,151.43,151.38,2.444]
[1718184286855,10.8434,151.43,151.39,2.444]
[1718184288383,2.4435,151.42,151.38,2.444]
[1718184288573,10.8434,151.43,151.38,2.444]
[1718184288963,10.8434,151.43,151.39,2.4439]
[1718184291868,8.4,151.42,151.39,2.4439]
[1718184293088,8.4,151.42,151.4,2.4438]
[1718184296171,8.4,151.42,151.39,2.4439]
[1718184296684,8.4,151.42,151.4,2.4438]
[1718184297470,8.4,151.42,151.39,2.4439]
[1718184302903,8.4,151.42,151.4,2.4438]
[1718184304174,8.4,151.42,151.39,2.4439]
[1718184304777,4.85577331,151.45,151.39,4.8879]
[1718184304970,4.85577331,151.45,151.41,2.4435]
[1718184305169,8.4,151.43,151.41,2.4435]
[1718184305972,2.41267331,151.45,151.4,1.32096169]
[1718184306194,2.41267331,151.45,151.44,2.4432]
[1718184306501,8.4,151.47,151.44,2.4432]
[1718184306992,2.4425,151.48,151.44,2.4432]
[1718184306993,8.4,151.46,151.44,2.4432]
[1718184308999,8.4,151.46,151.43,2.4432]
[1718184310610,8.4,151.46,151.43,2.4433]
[1718184310911,2.4427,151.47,151.42,2.4433]
[1718184310912,8.4,151.45,151.42,2.4433]
[1718184311114,8.4,151.45,151.43,2.4433]
[1718184311403,8.4,151.45,151.42,2.4434]
[1718184311613,2.4428,151.47,151.43,2.4433]
[1718184311777,8.4,151.45,151.43,2.4433]
[1718184311981,8.4,151.46,151.43,2.4433]
[1718184316703,10.8428,151.47,151.43,2.4433]
[1718184317301,10.8428,151.47,151.42,12.2174]
[1718184317302,8.4,151.47,151.42,12.2174]
[1718184317483,8.4,151.49,151.47,2.4426]
[1718184317684,8.4,151.49,151.43,8.4]
[1718184317685,11.46,151.5,151.45,15.7289]
[1718184317894,11.46,151.5,151.48,2.4424]
[1718184320806,10.8419,151.52,151.48,2.4424]
[1718184321402,8.4,151.52,151.49,2.4423]
[1718184321904,10.8419,151.52,151.48,3.53863297]
[1718184323512,10.8419,151.52,151.48,2.4424]
[1718184323800,10.8419,151.52,151.47,8.4]
[1718184323801,2.4421,151.51,151.47,2.4426]
[1718184324100,8.4,151.48,151.45,2.4429]
[1718184324292,8.4,151.48,151.43,14.6597]
[1718184324293,10.8425,151.48,151.44,2.4431]
[1718184324696,8.4,151.48,151.45,2.443]
[1718184327904,11.46,151.47,151.45,2.443]
[1718184328103,11.46,151.47,151.46,2.4428]
[1718184328398,8.4,151.48,151.46,2.4428]
[1718184328619,8.4,151.49,151.47,2.4427]
[1718184328824,18.5535,151.52,151.48,2.4425]
[1718184328981,11.46,151.49,151.48,2.4425]
[1718184330291,11.46,151.49,151.47,2.4426]
[1718184333718,11.46,151.49,151.48,2.4425]
[1718184333914,11.46,151.49,151.47,2.4426]
[1718184334122,11.46,151.49,151.48,2.4425]
[1718184336816,10.842,151.51,151.47,2.4426]
[1718184337619,10.842,151.51,151.48,2.4425]
[1718184338822,10.842,151.51,151.47,2.4426]
[1718184341130,7.3243,151.55,151.47,18.1706]
[1718184341298,2.4419,151.52,151.48,10.8424]
[1718184341495,2.442,151.51,151.48,8.4]
[1718184341826,2.4422,151.5,151.47,2.4426]
[1718184342029,2.4421,151.51,151.47,2.4426]
[1718184342799,2.4421,151.51,151.48,2.4425]
[1718184343296,10.842,151.52,151.48,2.4425]
[1718184346411,10.842,151.52,151.49,2.4423]
[1718184348365,2.442,151.52,151.49,2.4423]
[1718184348822,10.842,151.52,151.49,2.4423]
[1718184350936,10.842,151.52,151.48,2.4424]
[1718184351717,10.842,151.52,151.49,2.4423]
[1718184352514,8.4,151.52,151.49,2.4423]
[1718184353439,10.8419,151.52,151.49,2.4423]
[1718184354339,8.4,151.52,151.49,2.4423]
[1718184359840,8.4,151.52,151.48,2.4424]
[1718184360025,10.8419,151.52,151.48,2.4424]
[1718184360340,8.4,151.52,151.49,2.4423]
[1718184361544,11.46,151.5,151.49,2.4423]
[1718184362037,8.4,151.52,151.49,2.4423]
[1718184362038,10.8419,151.52,151.49,2.4423]
[1718184362344,8.4,151.52,151.49,2.4423]
[1718184363135,7.3252,151.53,151.47,2.4426]
[1718184363338,10.8422,151.5,151.47,2.4426]
[1718184363530,11.46,151.49,151.47,2.4426]
[1718184364122,19.86,151.49,151.47,2.4426]
[1718184372158,8.4,151.48,151.47,2.4426]
[1718184372343,8.4,151.48,151.46,2.4428]
[1718184373135,11.46,151.49,151.46,2.4428]
[1718184373136,8.4,151.47,151.46,2.4428]
[1718184375566,8.4,151.48,151.46,2.4428]
[1718184377970,19.86,151.49,151.47,2.4427]
[1718184378263,11.46,151.49,151.47,2.4427]
[1718184379367,19.86,151.49,151.46,2.4427]
[1718184380864,19.86,151.49,151.47,2.4427]
[1718184384471,19.86,151.49,151.46,2.4427]
[1718184385453,11.46,151.49,151.47,2.4425]
[1718184385772,11.46,151.49,151.48,2.4425]
[1718184386377,11.46,151.49,151.47,2.4426]
[1718184390084,11.46,151.49,151.46,2.4427]
[1718184391381,11.46,151.49,151.46,4.8856]
[1718184391584,11.46,151.49,151.47,2.4426]
[1718184392088,11.46,151.49,151.48,2.4425]
[1718184393398,10.8419,151.52,151.48,2.4425]
[1718184393882,8.4,151.51,151.48,2.4425]
[1718184394266,10.8421,151.51,151.47,2.4426]
[1718184395160,2.4419,151.52,151.47,13.2854]
[1718184395377,2.4419,151.52,151.48,2.4424]
[1718184397590,2.442,151.51,151.48,2.4424]
[1718184400193,2.442,151.51,151.47,10.8426]
[1718184402698,2.4424,151.49,151.45,15.8464]
[1718184402906,10.8424,151.5,151.46,2.4428]
[1718184403104,2.4424,151.49,151.46,2.4428]
[1718184404398,10.8423,151.5,151.46,2.4428]
[1718184405293,10.8423,151.5,151.47,2.4427]
[1718184405492,10.8423,151.5,151.46,2.4427]
[1718184406993,10.8423,151.5,151.47,2.4427]
[1718184407198,8.4,151.5,151.47,2.4427]
[1718184408418,10.8421,151.51,151.47,2.4427]
[1718184409193,10.8421,151.51,151.46,4.8857]
[1718184409496,10.8421,151.51,151.46,13.2857]
[1718184409699,8.4,151.51,151.48,2.4425]
[1718184411306,10.842,151.51,151.48,2.4425]
[1718184414782,2.442,151.52,151.48,2.4425]
[1718184415006,10.8421,151.51,151.48,2.4425]
[1718184415308,10.8421,151.51,151.46,20.6143]
[1718184415309,10.8421,151.51,151.47,2.4426]
[1718184416810,8.4,151.51,151.47,2.4426]
[1718184417008,10.8422,151.51,151.47,2.4426]
[1718184418014,4.8841,151.51,151.45,15.8464]
[1718184418181,4.8841,151.51,151.45,18.2893]
[1718184418182,10.8424,151.49,151.45,18.2893]
[1718184419008,8.4,151.49,151.46,2.4428]
[1718184419907,8.4,151.48,151.46,2.4428]
[1718184420111,8.4,151.47,151.45,2.4429]
[1718184421102,8.4,151.47,151.43,21.9897]
[1718184421103,8.4,151.47,151.44,2.4431]
[1718184421507,8.4,151.47,151.43,12.2165]
[1718184421508,8.4,151.47,151.45,2.443]
[1718184422495,8.4,151.48,151.45,2.443]
[1718184424713,10.8425,151.48,151.45,2.443]
[1718184425008,10.8425,151.48,151.44,2.4431]
[1718184426684,8.4,151.47,151.44,2.4431]
[1718184427004,8.4,151.46,151.44,2.4431]
[1718184427213,8.4,151.45,151.42,15.0658]
[1718184427418,8.4,151.45,151.43,2.4433]
[1718184430126,8.4,151.45,151.44,2.4432]
[1718184433226,8.4,151.45,151.43,2.4432]
[1718184435707,8.4,151.45,151.44,2.4432]
[1718184435918,8.4,151.46,151.45,2.4429]
[1718184436121,8.4,151.47,151.45,2.4429]
[1718184439210,8.4,151.47,151.44,2.4431]
[1718184439411,8.4,151.46,151.44,2.4431]
[1718184440531,8.4,151.46,151.43,2.4432]
[1718184441203,8.4,151.46,151.44,2.4432]
[1718184443926,8.4,151.46,151.43,2.4432]
[1718184444233,10.8428,151.46,151.43,2.4432]
[1718184444622,2.4428,151.46,151.43,2.4432]
[1718184444933,8.4,151.46,151.43,2.4432]
[1718184445948,8.4,151.46,151.44,2.4431]
[1718184447138,2.4426,151.48,151.44,2.4431]
[1718184447139,8.4,151.47,151.44,2.4431]
[1718184451249,10.8427,151.47,151.44,2.4431]
[1718184451623,10.8427,151.47,151.43,2.4432]
[1718184452939,10.8427,151.47,151.44,2.4432]
[1718184453235,8.4,151.47,151.42,12.2175]
[1718184453469,8.4,151.47,151.43,2.4432]
[1718184453633,10.8427,151.47,151.43,2.4432]
[1718184453843,10.8427,151.47,151.44,2.4431]
[1718184454522,10.8427,151.47,151.43,2.4432]
[1718184455540,10.8427,151.47,151.44,2.4431]
[1718184456537,10.8427,151.47,151.43,2.4432]
[1718184459149,2.4429,151.46,151.43,2.4432]
[1718184459449,10.8429,151.46,151.43,2.4432]
[1718184460551,8.4,151.46,151.43,2.4432]
[1718184461629,8.4,151.46,151.44,2.4432]
[1718184462825,8.4,151.46,151.43,2.4432]
[1718184463858,8.4,151.46,151.44,2.4432]
[1718184465836,8.4,151.46,151.43,2.4432]
[1718184466231,8.4,151.46,151.44,2.4431]
[1718184467447,8.4,151.46,151.43,2.4432]
[1718184468136,2.4426,151.48,151.44,2.4432]
[1718184468332,8.4,151.47,151.44,2.4432]
[1718184469052,10.8427,151.47,151.44,2.4432]
[1718184471236,8.4,151.47,151.44,2.4432]
[1718184471850,10.8427,151.47,151.44,2.4432]
[1718184474358,8.4,151.47,151.44,2.4432]
[1718184477366,10.8427,151.47,151.44,2.4432]
[1718184481764,8.4,151.47,151.44,2.4432]
[1718184481951,2.4424,151.49,151.44,4.8864]
[1718184482268,2.4423,151.5,151.44,12.216]
[1718184482473,8.4,151.49,151.46,2.4427]
[1718184482645,8.4,151.48,151.46,2.4427]
[1718184483245,4.8832,151.54,151.46,9.7714]
[1718184483547,8.4,151.51,151.49,2.4423]
[1718184483965,8.4,151.51,151.48,2.4424]
[1718184484475,10.842,151.51,151.47,2.4426]
[1718184486648,20.74492501,151.55,151.46,8.4]
[1718184486971,8.4,151.53,151.5,2.4421]
[1718184487137,2.4416,151.54,151.49,8.4]
[1718184487343,2.4419,151.52,151.49,2.4423]
[1718184488365,10.8418,151.53,151.49,2.4423]
[1718184488571,8.4,151.53,151.5,2.4422]
[1718184488770,10.8417,151.54,151.5,2.4422]
[1718184489668,2.4417,151.53,151.5,2.4422]
[1718184491468,2.4417,151.53,151.49,2.4423]
[1718184492987,10.8417,151.53,151.49,2.4423]
[1718184495672,2.4419,151.52,151.49,2.4423]
[1718184496363,10.8418,151.53,151.49,2.4423]
[1718184498276,10.8418,151.53,151.5,2.4422]
[1718184501079,2.4419,151.52,151.49,2.4423]
[1718184501456,8.4,151.52,151.49,2.4423]
[1718184504151,8.4,151.52,151.5,2.4422]
[1718184505183,8.4,151.52,151.49,2.4423]
[1718184505486,2.4421,151.51,151.47,2.4425]
[1718184505695,10.8421,151.51,151.48,2.4425]
[1718184505993,10.8421,151.51,151.46,4.8856]
[1718184505994,10.8421,151.51,151.47,2.4426]
[1718184506885,10.8421,151.51,151.48,2.4425]
[1718184508077,8.4,151.51,151.48,2.4425]
[1718184510964,8.4,151.51,151.47,7.3281]
[1718184511169,2.4418,151.53,151.47,7.3281]
[1718184511170,8.4,151.52,151.47,7.3281]
[1718184511979,8.4,151.52,151.5,2.4421]
[1718184513571,8.4,151.52,151.49,2.4423]
[1718184515292,10.8419,151.52,151.49,2.4423]
[1718184515666,8.4,151.52,151.49,2.4423]
[1718184515882,2.4419,151.52,151.49,2.4423]
[1718184518203,2.4419,151.52,151.48,2.4424]
[1718184518698,2.4419,151.52,151.49,2.4423]
[1718184524380,2.4419,151.52,151.48,2.4424]
[1718184525687,2.442,151.51,151.48,2.4424]
[1718184526006,2.4419,151.52,151.48,2.4424]
[1718184527513,2.4419,151.52,151.49,2.4424]
[1718184530384,10.8418,151.53,151.49,2.4424]
[1718184535609,2.4419,151.52,151.49,2.4423]
[1718184535810,10.8418,151.53,151.49,2.4423]
[1718184536109,2.4419,151.52,151.49,2.4423]
[1718184536292,10.8419,151.52,151.49,2.4423]
[1718184537007,2.4419,151.52,151.49,2.4423]
[1718184537382,10.8418,151.53,151.49,2.4423]
[1718184538809,10.8418,151.53,151.5,2.4422]
[1718184540685,8.4,151.53,151.5,2.4422]
[1718184541084,8.4,151.53,151.49,4.8847]
[1718184541508,10.8417,151.53,151.5,2.4421]
[1718184543923,10.8417,151.53,151.49,2.4423]
[1718184546527,10.8417,151.53,151.5,2.4422]
[1718184548239,8.4,151.53,151.5,2.4422]
[1718184548604,2.4417,151.54,151.5,2.4422]
[1718184548922,8.4,151.53,151.5,2.4422]
[1718184552024,10.8417,151.53,151.5,2.4422]
[1718184553929,2.4416,151.54,151.51,2.442]
[1718184554128,2.4416,151.54,151.5,2.4421]
[1718184554308,2.4417,151.53,151.5,2.4421]
[1718184554813,2.4419,151.52,151.49,2.4423]
[1718184555212,2.4419,151.52,151.48,2.4424]
[1718184555612,10.8418,151.53,151.49,2.4423]
[1718184556208,2.4419,151.52,151.49,2.4423]
[1718184557125,10.8418,151.53,151.49,2.4423]
[1718184559037,10.8418,151.53,151.5,2.4422]
[1718184560022,8.4,151.53,151.5,2.4422]
[1718184563936,8.4,151.52,151.5,2.4422]
[1718184564415,8.4,151.52,151.51,2.442]
[1718184565934,8.4,151.52,151.5,2.4421]
[1718184567015,8.4,151.53,151.51,2.442]
[1718184568727,8.4,151.53,151.5,2.4421]
[1718184568914,8.4,151.53,151.51,2.442]
[1718184572854,8.4,151.52,151.51,2.442]
[1718184573563,8.4,151.52,151.5,2.4421]
[1718184577141,8.4,151.52,151.51,2.442]
[1718184578025,8.4,151.52,151.5,2.4421]
[1718184578656,8.4,151.53,151.5,2.4421]
[1718184579539,10.8417,151.53,151.5,2.4421]
[1718184580035,8.4,151.53,151.5,2.4421]
[1718184582151,8.4,151.53,151.51,2.442]
[1718184582851,8.4,151.53,151.5,2.4421]
[1718184583366,8.4,151.52,151.5,2.4421]
[1718184583532,0.17,151.52,151.38,28.3143831]
[1718184583847,0.17,151.52,151.47,2.4426]
[1718184583848,2.4421,151.51,151.47,2.4426]
[1718184584048,8.4,151.49,151.47,2.4426]
[1718184587354,8.4,151.49,151.48,2.4425]
[1718184596463,8.4,151.49,151.44,12.2158]
[1718184596668,2.4422,151.51,151.47,2.4427]
[1718184596839,8.4,151.48,151.47,2.4427]
[1718184600765,8.4,151.48,151.45,2.443]
[1718184600766,10.8425,151.48,151.45,2.443]
[1718184600976,8.4,151.46,151.43,4.8864]
[1718184601162,8.4,151.45,151.44,2.4431]
[1718184602348,8.4,151.45,151.43,2.4432]
[1718184602547,8.4,151.44,151.41,2.4436]
[1718184602767,8.4,151.43,151.39,4.8878]
[1718184603164,8.4,151.43,151.4,2.4437]
[1718184603358,8.4,151.43,151.41,2.4436]
[1718184604260,8.4,151.43,151.38,15.7319]
[1718184604470,0.17,151.45,151.35,9.7783]
[1718184604669,8.4,151.4,151.37,2.4442]
[1718184604854,8.4,151.4,151.38,2.444]
[1718184605172,8.4,151.4,151.36,4.8889]
[1718184605347,2.4434,151.43,151.38,2.4441]
[1718184605553,8.4,151.4,151.39,2.444]
[1718184605753,8.4,151.4,151.38,2.444]
[1718184606952,8.4,151.4,151.37,2.4442]
[1718184607352,8.4,151.39,151.37,2.4442]
[1718184609059,8.4,151.39,151.34,20.9889]
[1718184609264,8.4,151.38,151.35,2.4445]
[1718184610491,8.4,151.37,151.35,2.4445]
[1718184610673,8.4,151.37,151.34,2.4447]
[1718184612080,8.4,151.35,151.3,15.6696]
[1718184612283,8.4,151.34,151.31,2.4452]
[1718184612585,8.4,151.34,151.31,2.4451]
[1718184613167,8.4,151.34,151.3,2.4453]
[1718184613467,8.4,151.33,151.28,22.0114]
[1718184614059,8.4,151.33,151.31,2.4452]
[1718184614882,16.4468,151.37,151.33,2.4449]
[1718184615079,8.4,151.36,151.33,2.4449]
[1718184615569,8.4,151.36,151.32,2.445]
[1718184616379,10.8445,151.36,151.32,2.445]
[1718184616594,8.4,151.35,151.32,2.445]
[1718184617486,18.8912,151.37,151.32,2.445]
[1718184617687,8.4,151.35,151.32,2.445]
[1718184618493,8.4,151.35,151.31,2.4452]
[1718184619173,8.4,151.34,151.31,2.4452]
[1718184619401,8.4,151.35,151.31,2.4452]
[1718184620377,2.4443,151.37,151.32,2.445]
[1718184620583,10.8443,151.37,151.32,2.445]
[1718184620877,2.4443,151.37,151.32,2.445]
[1718184621096,2.4445,151.36,151.32,2.445]
[1718184621677,10.8444,151.37,151.32,2.445]
[1718184622374,2.4445,151.36,151.32,2.445]
[1718184622589,8.4,151.37,151.32,2.445]
[1718184622590,10.8444,151.37,151.32,2.445]
[1718184623009,2.4441,151.39,151.34,2.4447]
[1718184623304,9.7743,151.42,151.34,2.4447]
[1718184623305,10.8439,151.4,151.36,2.4444]
[1718184623624,2.4437,151.41,151.37,2.4443]
[1718184624090,2.4437,151.41,151.36,10.8444]
[1718184624277,2.4438,151.4,151.36,10.8444]
[1718184624676,2.4437,151.41,151.36,10.8444]
[1718184625196,16.4929,151.45,151.36,8.4]
[1718184625382,2.4436,151.42,151.37,10.8442]
[1718184626176,2.4436,151.42,151.38,2.4441]
[1718184627583,2.4436,151.42,151.38,3.76513707]
[1718184628000,2.4437,151.41,151.37,10.8442]
[1718184628317,2.4439,151.4,151.36,2.4444]
[1718184628688,10.8438,151.41,151.36,2.4444]
[1718184628886,10.8438,151.41,151.37,2.4443]
[1718184629401,2.4438,151.41,151.37,2.4443]
[1718184629585,2.4438,151.41,151.36,10.8444]
[1718184629793,2.4439,151.4,151.36,2.4444]
[1718184629994,2.4437,151.41,151.37,2.4443]
[1718184630310,10.8435,151.42,151.38,2.4441]
[1718184630483,10.8437,151.41,151.36,8.4]
[1718184630678,10.8437,151.41,151.36,2.4443]
[1718184631098,10.8437,151.41,151.37,2.4443]
[1718184632892,10.8437,151.41,151.35,19.805]
[1718184632893,8.4,151.41,151.38,2.4441]
[1718184633094,10.8436,151.42,151.38,2.4441]
[1718184634105,2.4436,151.42,151.38,2.4441]
[1718184634300,10.8436,151.42,151.38,2.4441]
[1718184636096,10.8437,151.41,151.37,2.4442]
[1718184636612,8.4,151.41,151.38,2.4441]
[1718184638205,2.4436,151.42,151.38,2.4441]
[1718184638206,10.8436,151.42,151.38,2.4441]
[1718184641387,16.4929,151.45,151.37,18.1771]
[1718184641603,8.57,151.44,151.38,8.4]
[1718184641914,2.4434,151.43,151.39,2.4439]
[1718184642902,2.4431,151.45,151.41,2.4436]
[1718184643104,2.4431,151.45,151.41,2.4435]
[1718184643519,10.8431,151.45,151.41,2.4435]
[1718184644215,8.4,151.44,151.41,2.4435]
[1718184644595,10.8433,151.44,151.4,2.4438]
[1718184644804,8.4,151.45,151.41,2.4436]
[1718184645008,2.4433,151.44,151.4,2.4437]
[1718184645222,2.4433,151.43,151.39,10.8439]
[1718184645532,2.4433,151.43,151.39,2.4439]
[1718184646824,2.4433,151.43,151.4,2.4438]
[1718184647117,10.8433,151.44,151.4,2.4438]
[1718184647504,8.4,151.44,151.41,2.4436]
[1718184647709,10.8431,151.45,151.41,2.4436]
[1718184648409,2.4432,151.44,151.41,2.4436]
[1718184648602,2.4432,151.44,151.4,2.4437]
[1718184649712,2.4432,151.44,151.41,2.4436]
[1718184649905,2.4432,151.44,151.4,2.4437]
[1718184650501,10.8432,151.44,151.4,2.4437]
[1718184652430,10.8432,151.44,151.41,2.4436]
[1718184652731,8.4,151.44,151.41,2.4436]
[1718184653819,10.8432,151.44,151.41,2.4436]
[1718184654021,10.8432,151.44,151.4,2.4437]
[1718184654022,8.4,151.44,151.4,2.4437]
[1718184654223,8.4,151.43,151.37,4.8884]
[1718184654422,8.4,151.42,151.36,20.9911]
[1718184654625,2.4438,151.41,151.38,2.4441]
[1718184655028,2.4436,151.42,151.38,2.4441]
[1718184655327,8.4,151.41,151.39,2.4439]
[1718184656129,2.4434,151.43,151.39,2.4439]
[1718184656130,8.4,151.42,151.39,2.4439]
[1718184656309,10.8435,151.42,151.39,2.4439]
[1718184656711,2.4437,151.41,151.36,7.3334]
[1718184656906,10.8437,151.41,151.37,2.4442]
[1718184657929,8.4,151.41,151.38,2.4441]
[1718184660641,8.4,151.41,151.39,2.444]
[1718184661016,10.8436,151.42,151.39,2.444]
[1718184661726,10.8436,151.42,151.38,2.444]
[1718184663737,2.4434,151.43,151.39,2.4439]
[1718184663923,8.4,151.42,151.39,2.4439]
[1718184665347,10.8435,151.42,151.38,2.444]
[1718184666145,8.4,151.41,151.38,2.444]
[1718184667661,10.8437,151.41,151.37,2.4442]
[1718184668346,10.8437,151.41,151.38,2.4441]
[1718184668852,8.4,151.41,151.38,2.4441]
[1718184669057,10.8436,151.42,151.38,2.4441]
[1718184671559,10.8436,151.42,151.39,2.444]
[1718184672559,10.8436,151.42,151.38,2.4441]
[1718184673670,10.8436,151.42,151.39,2.444]
[1718184674939,2.4436,151.42,151.39,2.444]
[1718184675342,10.8436,151.42,151.39,2.444]
[1718184675761,2.4434,151.43,151.38,4.8882]
[1718184675953,8.4,151.43,151.4,2.4438]
[1718184676166,12.212,151.49,151.41,12.2182]
[1718184676340,8.4,151.46,151.43,2.4432]
[1718184677262,10.8429,151.46,151.43,2.4432]
[1718184677444,2.443,151.45,151.42,2.4435]
[1718184677649,10.843,151.45,151.42,2.4435]
[1718184677953,8.4,151.45,151.42,2.4435]
[1718184679858,8.4,151.45,151.43,2.4433]
[1718184680443,8.4,151.45,151.42,2.4435]
[1718184682179,8.4,151.45,151.43,2.4433]
[1718184683763,8.4,151.45,151.42,2.4434]
[1718184687050,8.4,151.45,151.43,2.4433]
[1718184690958,8.4,151.45,151.44,2.4432]
[1718184691774,8.4,151.45,151.43,2.4432]
[1718184693778,21.4861,151.5,151.43,4.8866]
[1718184693952,10.8424,151.49,151.43,15.7299]
[1718184694281,19.50912879,151.51,151.45,8.4]
[1718184694282,2.41382879,151.51,151.45,8.4]
[1718184694453,2.41382879,151.51,151.49,2.4423]
[1718184694770,2.41382879,151.51,151.48,2.4424]
[1718184695173,2.41382879,151.51,151.49,2.4423]
[1718184695474,2.41382879,151.51,151.5,2.4422]
[1718184696550,2.41382879,151.51,151.49,2.4423]
[1718184697064,2.4417,151.53,151.49,2.4423]